lending/lending_fUSD_20260411
["ID","MTS","AMOUNT","RATE_DAILY","PERIOD"]
[420240852,1775847034337,-1460.68196656,0.00013927,2]
[420240853,1775847034346,-1460.68196656,0.00013927,2]
[420240854,1775847034359,-1460.68196656,0.00013927,2]
[420240855,1775847034379,-1460.68196656,0.00013927,2]
[420240856,1775847034388,-1460.68196656,0.00013927,2]
[420240857,1775847034397,-1460.68196656,0.00013927,2]
[420240858,1775847034414,-1460.68196658,0.00013927,2]
[420240859,1775847034423,-1460.68196658,0.00013927,2]
[420240860,1775847034437,-1460.68196658,0.00013927,2]
[420240861,1775847034447,-1460.68196658,0.00013927,2]
[420240862,1775847034459,-500.0,0.00013927,2]
[420240863,1775847034468,-1460.68196657,0.00013927,2]
[420240864,1775847034480,-31870.05130648,0.00013928,2]
[420240865,1775847034502,-19689.57241436,0.00013928,2]
[420240870,1775847037972,-8771.8,0.00013445,2]
[420240871,1775847037993,-4810.94195086,0.00013445,2]
[420240872,1775847038010,-796.55986639,0.00013445,2]
[420240873,1775847038026,-4264.19002541,0.00013445,2]
[420240874,1775847038057,-639.31888652,0.00013445,2]
[420240875,1775847038069,-1513.16049576,0.00013445,2]
[420240876,1775847038082,-8149.40959513,0.00013445,2]
[420240877,1775847038109,-4934.206548,0.00013445,2]
[420240878,1775847038122,-139873.80031643,0.00013445,2]
[420240879,1775847038253,-20955.83799274,0.00013445,2]
[420240880,1775847040120,-1034.76594668,0.00013445,2]
[420240881,1775847040175,-1789.41549435,0.00013445,2]
[420240882,1775847040195,-2315.09651318,0.00013445,2]
[420240883,1775847040212,-10692.78761782,0.00013445,2]
[420240884,1775847040231,-1819.1209591,0.00013445,2]
[420240885,1775847040252,-3744.20665754,0.00013445,2]
[420240886,1775847040263,-1135.96567531,0.00013445,2]
[420240887,1775847040505,-118171.13314832,0.00013445,2]
[420240888,1775847040541,-16337.6022456,0.00013445,2]
[420240889,1775847040556,-86829.823612,0.00013445,2]
[420240890,1775847040586,-695.34,0.00013445,2]
[420240891,1775847040608,-651.98732006,0.00013445,2]
[420240892,1775847041571,-454.35,0.00013445,2]
[420240893,1775847041584,-684.2462517,0.00013445,2]
[420240894,1775847041623,-390.204,0.00013445,2]
[420240895,1775847041644,-504.28224,0.00013445,2]
[420240896,1775847041663,-972.98655423,0.00013445,2]
[420240897,1775847042136,-475.80353924,0.00013445,2]
[420240898,1775847042155,-36884.8876836,0.00013445,2]
[420240902,1775847042963,-10686.35066689,0.00013445,2]
[420240903,1775847042975,-5700.45216036,0.00013445,2]
[420240904,1775847043005,-1540.50542448,0.00013445,2]
[420240905,1775847043036,-3594.06331873,0.00013445,2]
[420240906,1775847043050,-1142.2,0.00013445,2]
[420240907,1775847043218,-341.04,0.00013445,2]
[420240908,1775847043242,-4051.58577808,0.00013445,2]
[420240909,1775847043315,-500.0,0.00013445,2]
[420240912,1775847043371,-6758.46950346,0.00013445,2]
[420240925,1775847045816,-673.28,0.00013445,2]
[420240926,1775847045830,-25462.28695369,0.00013445,2]
[420240927,1775847045853,-11996.73501034,0.00013445,2]
[420240928,1775847045874,-11285.92293609,0.00013445,2]
[420240929,1775847045887,-651.98542784,0.00013445,2]
[420240930,1775847046077,-385.86598933,0.00013445,2]
[420240931,1775847046089,-4379.43553786,0.00013445,2]
[420240932,1775847046132,-7629.51241606,0.00013445,2]
[420240933,1775847046177,-1875.59761931,0.00013445,2]
[420240934,1775847046206,-4457.62639679,0.00013445,2]
[420240935,1775847046224,-65000.0,0.00013445,2]
[420240936,1775847046270,-494.61771879,0.00013445,2]
[420240937,1775847046284,-84397.39424105,0.00013445,2]
[420240938,1775847046316,-39101.34391089,0.00013445,2]
[420241009,1775847543496,6669.51008434,8e-05,2]
[420241013,1775847706525,489.32356976,0.0001,2]
[420241020,1775847736772,-2016.81515723,0.000107,2]
[420241021,1775847738636,-10000.01,0.000107,2]
[420241022,1775847738652,-10000.01,0.000107,2]
[420241023,1775847738683,-10000.01,0.000107,2]
[420241024,1775847748566,-10000.01,0.000107,2]
[420241025,1775847748879,-10000.01,0.000107,2]
[420241026,1775847749025,-10000.01,0.000107,2]
[420241027,1775847749049,-10000.01,0.000107,2]
[420241028,1775847783020,-300.0,0.00010699,2]
[420241029,1775847783056,-9400.01,0.000107,2]
[420241030,1775847783228,-10000.01,0.000107,2]
[420241031,1775847783369,-10000.01,0.000107,2]
[420241032,1775847788593,5000.01,7.945e-05,2]
[420241033,1775847788621,5000.01,7.945e-05,2]
[420241034,1775847788653,5000.01,7.945e-05,2]
[420241035,1775847788696,5000.01,7.945e-05,2]
[420241036,1775847788761,470.763438,7.945e-05,2]
[420241037,1775847789120,-4815.94210169,0.000107,2]
[420241038,1775847789627,-368.12579662,0.000107,2]
[420241039,1775847789864,-452.0,0.000107,3]
[420241040,1775847792136,-452.0,0.00011295,3]
[420241041,1775847847591,3152.986698,7.945e-05,2]
[420241042,1775847854797,-456.0,0.00011295,3]
[420241141,1775848231928,-483.0,0.00011295,3]
[420241142,1775848231939,-55.87579634,0.00011295,30]
[420241143,1775848232060,-665.79967857,0.00011295,30]
[420241144,1775848232074,-96.89526509,0.00011295,30]
[420241145,1775848232087,-818.57074,0.00011858,30]
[420241146,1775848232108,-483.0,0.00011858,3]
[420241147,1775848232118,-818.57074,0.00012187,30]
[420241148,1775848232132,-500.0,0.00012187,2]
[420241149,1775848232150,-818.57074,0.00012422,30]
[420241150,1775848232174,-43.37773917,0.00012422,3]
[420241151,1775848232220,-439.62226083,0.00012422,3]
[420241152,1775848232229,-14.93161825,0.00012425,2]
[420241153,1775848232259,-585.06838175,0.00012425,2]
[420241154,1775848232269,-154.94955681,0.00012559,2]
[420241155,1775848232295,-1045.05044319,0.00012559,2]
[420241156,1775848232305,-1871.26,0.0001256,2]
[420241157,1775848232315,-6939.853672,0.00012772,2]
[420241158,1775848232337,-491.5489353,0.00012902,2]
[420241159,1775848232351,-194.6134,0.00012956,2]
[420241160,1775848232364,-500.0,0.00012959,2]
[420241161,1775848232376,-483.0,0.00012985,3]
[420241163,1775848232386,-250.0,0.00013,2]
[420241164,1775848232395,-500.0,0.00013,2]
[420241165,1775848232406,-1600.0,0.00013056,2]
[420241166,1775848232417,-150.0,0.000131,2]
[420241167,1775848232429,-507.0,0.000131,2]
[420241168,1775848232444,-200.0,0.00013108,2]
[420241169,1775848232454,-773.7,0.00013121,2]
[420241170,1775848232466,-153.99970642,0.00013145,2]
[420241171,1775848232475,-225.34798066,0.00013235,2]
[420241172,1775848232491,-717011.66019711,0.00013245,2]
[420241173,1775848232512,-5065.29190151,0.00013245,2]
[420241174,1775848232527,-68927.46675902,0.00013245,2]
[420241175,1775848232546,-51942.61848051,0.00013245,2]
[420241176,1775848232562,-343.32323318,0.00013245,2]
[420241179,1775848238371,-176.74066952,0.00013244,2]
[420241180,1775848238390,-500.0,0.00013244,2]
[420241181,1775848238421,-500.0,0.00013244,2]
[420241182,1775848238434,-26.20509855,0.00013244,2]
[420241189,1775848240967,-473.79490145,0.00013244,2]
[420241190,1775848240976,-500.0,0.00013244,2]
[420241191,1775848240987,-406.77310287,0.00013244,2]
[420241192,1775848240997,-193209.73347888,0.00013245,2]
[420241193,1775848241023,-3693.67181145,0.00013245,2]
[420241194,1775848241072,-48676.5,0.00013245,2]
[420241323,1775848243398,-507.85562939,0.00013245,2]
[420241324,1775848243522,-1930.53884892,0.00013245,2]
[420241325,1775848243537,-18349.77486407,0.00013245,2]
[420241326,1775848243568,-2667.88970174,0.00013245,2]
[420241341,1775848248988,-500.0,0.00013244,2]
[420241342,1775848249002,-500.0,0.00013244,2]
[420241343,1775848249019,-500.0,0.00013244,2]
[420241344,1775848249031,-500.0,0.00013244,2]
[420241345,1775848249041,-500.0,0.00013244,2]
[420241346,1775848249051,-500.0,0.00013244,2]
[420241347,1775848249070,-185.75637317,0.00013244,2]
[420241352,1775848249525,-500.0,0.00013244,2]
[420241353,1775848249535,-496.80649719,0.00013244,2]
[420241354,1775848249544,-500.0,0.00013244,2]
[420241355,1775848249555,-500.0,0.00013244,2]
[420241356,1775848249564,-500.0,0.00013244,2]
[420241357,1775848249574,-500.0,0.00013244,2]
[420241358,1775848249583,-500.0,0.00013244,2]
[420241359,1775848249593,-500.0,0.00013244,2]
[420241360,1775848249603,-267.41923366,0.00013244,2]
[420241362,1775848249619,-500.0,0.00013244,2]
[420241364,1775848249629,-200.62311432,0.00013244,2]
[420241366,1775848249644,-51685.32634856,0.00013245,2]
[420241370,1775848249656,-425.44781725,0.00013245,2]
[420241375,1775848249690,-549.74487618,0.00013245,2]
[420241385,1775848249757,-450.60654917,0.00013245,2]
[420241388,1775848249771,-3973.95170521,0.00013245,2]
[420241546,1775848541938,163.67,9.963e-05,2]
[420241550,1775849392187,2681.77111519,0.00010698,2]
[420241551,1775849392218,1027.8947003,0.00010698,2]
[420241552,1775849392259,3181.32977118,0.00010698,2]
[420241554,1775849432388,-500.0,0.00011195,2]
[420241555,1775849432405,-292.87331872,0.00011195,30]
[420241556,1775849432419,-600.0,0.00011195,2]
[420241557,1775849432443,-150.0,0.0001222,2]
[420241558,1775849432453,-2000.0,0.00012265,2]
[420241559,1775849432464,-292.8733187,0.00012315,30]
[420241560,1775849432490,-600.0,0.00012315,2]
[420241561,1775849432500,-198.61775508,0.00012891,2]
[420241562,1775849432531,-168.84,0.00012935,2]
[420241563,1775849432545,-292.87331872,0.00012979,30]
[420241564,1775849432566,-1200.0,0.00012979,2]
[420241565,1775849432586,-150.0,0.0001298,2]
[420241566,1775849432601,-150.0,0.0001298,2]
[420241567,1775849432625,-292.87331872,0.0001298,30]
[420241568,1775849432636,-1191.52,0.0001298,2]
[420241569,1775849432655,-150.99,0.0001298,2]
[420241570,1775849432674,-1621.48,0.0001298,2]
[420241571,1775849432684,-3848.5901189,0.0001298,2]
[420241572,1775849432712,-9999.99,0.0001298,2]
[420241573,1775849432722,-1216.0,0.00013,2]
[420241574,1775849432741,-292.87331872,0.00013,30]
[420241575,1775849432752,-1681.5930197,0.00013044,2]
[420241576,1775849432762,-150.0,0.00013095,2]
[420241577,1775849432782,-409.0,0.00013096,2]
[420241578,1775849432794,-189.05836857,0.000131,2]
[420241579,1775849432804,-382.31243871,0.000131,2]
[420241580,1775849432826,-285.68540364,0.000131,2]
[420241581,1775849432843,-322.11979027,0.000131,2]
[420241582,1775849432859,-1.66952154,0.000131,2]
[420241583,1775849432895,-504.33047846,0.000131,2]
[420241584,1775849432905,-150.23198711,0.00013134,2]
[420241585,1775849432932,-150.23198711,0.00013134,2]
[420241586,1775849432948,-500.0,0.00013143,2]
[420241587,1775849432963,-502.81050305,0.00013143,2]
[420241588,1775849432973,-500.0,0.00013143,2]
[420241589,1775849432989,-500.0,0.00013143,2]
[420241590,1775849433005,-500.0,0.00013143,2]
[420241591,1775849433016,-540.43618002,0.00013143,2]
[420241592,1775849433032,-397.76454804,0.00013143,2]
[420241593,1775849433048,-500.0,0.00013143,2]
[420241594,1775849433059,-186.02137072,0.00013143,2]
[420241595,1775849433071,-333239.84727121,0.00013144,2]
[420241596,1775849433832,-2033.70262742,0.00013144,2]
[420241617,1775849438447,-14205.57435174,0.00013144,2]
[420241618,1775849438536,-746.10469463,0.00013144,2]
[420241619,1775849438553,-1855.85595096,0.00013144,2]
[420241627,1775849441038,-501609.73618569,0.00013144,2]
[420241628,1775849441503,-665.0,0.00013144,2]
[420241630,1775849443354,-6304.12939191,0.00013144,2]
[420241631,1775849443577,-550.010674,0.00013144,2]
[420241632,1775849443693,-526.27411327,0.00013144,2]
[420241674,1775849447288,-335.819307,0.00013144,2]
[420241676,1775849447324,-27184.24624021,0.00013144,2]
[420241679,1775849447357,-6754.41849012,0.00013144,2]
[420241681,1775849447421,-1802.97179547,0.00013144,2]
[420241748,1775849572526,6790.61656041,0.00010699,2]
[420241749,1775849579487,3209.39343959,0.000104,5]
[420241750,1775849579535,2323.60656041,0.000104,5]
[420241751,1775849579727,5533.0,0.000102,3]
[420241752,1775849580962,2143.40343959,0.0001,2]
[420241753,1775849580994,10000.01,0.0001,2]
[420241754,1775849581026,10000.01,0.0001,2]
[420241755,1775849581051,5083.57656041,0.0001,2]
[420241756,1775849588769,591.0,0.00010699,2]
[420241757,1775849652258,561.0,0.00010699,2]
[420241759,1775849699462,597.93390399,0.0001,2]
[420241760,1775849710929,162.0,0.00010699,2]
[420241761,1775849711014,533.0,0.00010699,2]
[420241762,1775849711425,533.0,0.00010699,2]
[420241764,1775849765095,529.0,0.00010699,2]
[420241765,1775849765340,529.0,0.00010699,2]
[420241766,1775849825324,476.0,0.00010699,2]
[420241767,1775849825539,404.4995356,0.00010699,2]
[420241768,1775849825564,71.5004644,0.00010699,2]
[420241769,1775849887146,428.0,0.00010699,2]
[420241770,1775849887438,428.0,0.00010699,2]
[420241771,1775849947864,386.0,0.00010699,2]
[420241772,1775849948113,386.0,0.00010699,2]
[420241774,1775850006484,347.0,0.00010699,2]
[420241775,1775850006817,347.0,0.00010699,2]
[420241776,1775850071721,174.0,0.00010699,2]
[420241777,1775850071799,174.0,0.00010699,2]
[420241778,1775850124987,295.0,0.00010699,2]
[420241779,1775850125205,295.0,0.00010699,2]
[420241780,1775850185361,275.0,0.00010699,2]
[420241781,1775850185595,275.0,0.00010699,2]
[420241782,1775850245511,296.0,0.00010699,2]
[420241783,1775850245746,296.0,0.00010699,2]
[420241784,1775850252018,166.79,0.00016,120]
[420241785,1775850306045,267.0,0.00010699,2]
[420241786,1775850306291,267.0,0.00010699,2]
[420241787,1775850311236,162.0,0.00010699,2]
[420241788,1775850368942,-3692613.7516099,0.00046561,30]
[420241789,1775850369022,-2000.0,0.00046561,120]
[420241790,1775850369110,-670.57,0.00046561,120]
[420241791,1775850369183,-670.57,0.00046561,120]
[420241792,1775850369251,-670.57,0.00046561,120]
[420241793,1775850369317,-670.57,0.00046561,120]
[420241794,1775850369386,-670.57,0.00046561,120]
[420241795,1775850369455,-670.57,0.00046561,120]
[420241796,1775850369534,-670.57,0.00046561,120]
[420241797,1775850369626,-670.57,0.00046561,120]
[420241798,1775850369699,-2000.0,0.00046561,90]
[420241799,1775850369787,-670.57,0.00046561,120]
[420241800,1775850369869,-670.57,0.00046561,120]
[420241801,1775850369956,-670.57,0.00046561,120]
[420241802,1775850370032,-670.57,0.00046561,120]
[420241803,1775850370106,-670.57,0.00046561,120]
[420241804,1775850370188,-670.57,0.00046561,120]
[420241805,1775850370256,-670.57,0.00046561,120]
[420241806,1775850370333,-670.57,0.00046561,120]
[420241807,1775850370405,-670.57,0.00046561,120]
[420241808,1775850370481,-670.57,0.00046561,120]
[420241809,1775850370547,-670.57,0.00046561,120]
[420241810,1775850370610,-670.57,0.00046561,120]
[420241811,1775850370676,-670.57,0.00046561,120]
[420241812,1775850370740,-670.57,0.00046561,120]
[420241813,1775850370812,-670.57,0.00046561,120]
[420241814,1775850370878,-670.603791,0.00046561,120]
[420241815,1775850370948,-2000.0,0.00046561,120]
[420241816,1775850371018,-154.60623225,0.00046561,120]
[420241817,1775850371106,-223.18568442,0.00046561,120]
[420241818,1775850371258,-245.15879834,0.00046561,120]
[420241819,1775850371424,-215.21851614,0.00046561,120]
[420241820,1775850371506,-440.98175023,0.00046561,120]
[420241821,1775850371588,-154.60656162,0.00046561,120]
[420241822,1775850371656,-7951.2451289,0.00046561,120]
[420241823,1775850371731,-363.94566918,0.00046561,120]
[420241824,1775850371809,-269.80271235,0.00046561,120]
[420241825,1775850371887,-259.17755952,0.00046561,120]
[420241826,1775850371962,-328.18344284,0.00046561,120]
[420241827,1775850372037,-500.0,0.00046561,120]
[420241828,1775850372110,-242.74580731,0.00046561,120]
[420241829,1775850372178,-263.31316049,0.00046561,120]
[420241830,1775850372257,-258.75901908,0.00046561,30]
[420241831,1775850372325,-500.0,0.00046561,120]
[420241832,1775850372396,-500.0,0.00046561,120]
[420241833,1775850372485,-588.85466087,0.00046561,120]
[420241834,1775850372550,-245.88321452,0.00046561,120]
[420241835,1775850372639,-159.31122923,0.00046561,120]
[420241836,1775850372704,-210.40739419,0.00046561,120]
[420241837,1775850372796,-500.0,0.00046561,120]
[420241838,1775850372877,-309.6631292,0.00046561,120]
[420241839,1775850372962,-500.0,0.00046561,120]
[420241840,1775850373038,-500.0,0.00046561,120]
[420241841,1775850373489,-226.4805886,0.00046561,120]
[420241842,1775850373574,-155.47361986,0.00046561,120]
[420241843,1775850373652,-561.35528786,0.00046561,120]
[420241844,1775850373716,-289.45692242,0.00046561,120]
[420241845,1775850373784,-199.58470683,0.00046561,120]
[420241846,1775850373852,-372.57781636,0.00046561,120]
[420241847,1775850373925,-181.34544402,0.00046561,120]
[420241848,1775850374002,-220.58141048,0.00046561,120]
[420241849,1775850374102,-218.45010642,0.00046561,120]
[420241850,1775850374235,-158.50107502,0.00046561,120]
[420241851,1775850374353,-439.24231648,0.00046561,120]
[420241852,1775850374484,-154.66019083,0.00046561,120]
[420241853,1775850374576,-157.50271307,0.00046561,120]
[420241854,1775850374647,-216.18145625,0.00046561,120]
[420241855,1775850374715,-152.68398687,0.00046561,120]
[420241856,1775850374785,-228.57179438,0.00046561,120]
[420241857,1775850374848,-174.31432057,0.00046561,120]
[420241858,1775850374914,-157.02378791,0.00046561,120]
[420241859,1775850374979,-623.54699587,0.00046561,120]
[420241860,1775850375049,-271.5781155,0.00046561,120]
[420241861,1775850375118,-578.03289853,0.00046561,120]
[420241862,1775850375206,-538.18125482,0.00046561,120]
[420241863,1775850375307,-283.60786025,0.00046561,120]
[420241864,1775850375421,-500.0,0.00046561,120]
[420241865,1775850375516,-564.40609518,0.00046561,120]
[420241866,1775850375606,-500.0,0.00046561,120]
[420241867,1775850375699,-500.0,0.00046561,120]
[420241868,1775850375787,-413.19004093,0.00046561,120]
[420241869,1775850375883,-387.85508379,0.00046561,120]
[420241870,1775850375959,-328.10721969,0.00046561,120]
[420241871,1775850376035,-500.0,0.00046561,120]
[420241872,1775850376104,-166.39692544,0.00046561,120]
[420241873,1775850376183,-602.18842064,0.00046561,120]
[420241874,1775850376251,-500.0,0.00046561,120]
[420241875,1775850376322,-155.49042153,0.00046561,120]
[420241876,1775850376390,-552.18023754,0.00046561,120]
[420241877,1775850376458,-175.10949932,0.00046561,120]
[420241878,1775850376529,-398.06209318,0.00046561,120]
[420241879,1775850376606,-173.98330964,0.00046561,120]
[420241880,1775850376682,-500.0,0.00046561,120]
[420241881,1775850376750,-307.64680077,0.00046561,120]
[420241882,1775850376822,-478.86333842,0.00046561,120]
[420241883,1775850376890,-269.62064421,0.00046561,120]
[420241884,1775850376980,-249.16597642,0.00046561,120]
[420241885,1775850377082,-500.0,0.00046561,120]
[420241886,1775850377181,-518.9326,0.00046561,120]
[420241887,1775850377273,-421.77621947,0.00046561,120]
[420241888,1775850377372,-151.37755051,0.00046561,120]
[420241889,1775850377472,-154.65755552,0.00046561,120]
[420241890,1775850377565,-340.07404924,0.00046561,120]
[420241891,1775850377657,-163.74154751,0.00046561,120]
[420241892,1775850377737,-230.81301155,0.00046561,120]
[420241893,1775850377807,-154.31559442,0.00046561,120]
[420241894,1775850377883,-328.20261791,0.00046561,120]
[420241895,1775850377956,-249.80338639,0.00046561,120]
[420241896,1775850378023,-402.74874493,0.00046561,120]
[420241897,1775850378095,-320.94325813,0.00046561,120]
[420241898,1775850378168,-500.0,0.00046561,120]
[420241899,1775850378248,-158.29439411,0.00046561,120]
[420241900,1775850378315,-266.38664669,0.00046561,120]
[420241901,1775850378391,-640.24299196,0.00046561,120]
[420241902,1775850378463,-213.12769164,0.00046561,120]
[420241903,1775850378542,-361.88574883,0.00046561,120]
[420241904,1775850378646,-260.60612756,0.00046561,120]
[420241905,1775850378742,-336.02829493,0.00046561,120]
[420241906,1775850378845,-165.05724412,0.00046561,120]
[420241907,1775850379081,-194.90897861,0.00046561,120]
[420241908,1775850379210,-500.0,0.00046561,120]
[420241909,1775850379300,-291.03699684,0.00046561,120]
[420241910,1775850379387,-154.34662944,0.00046561,60]
[420241911,1775850379464,-216.47985715,0.00046561,120]
[420241912,1775850379539,-206.3526402,0.00046561,120]
[420241913,1775850379611,-269.85116394,0.00046561,60]
[420241914,1775850379686,-516.32,0.00046561,120]
[420241915,1775850379762,-5001.64,0.00046561,120]
[420241916,1775850379835,-152.0967906,0.00046561,120]
[420241917,1775850379914,-152.89904392,0.00046561,120]
[420241918,1775850380001,-159.6528551,0.00046561,30]
[420241919,1775850380110,-500.0,0.00046561,120]
[420241920,1775850380199,-500.0,0.00046561,120]
[420241921,1775850380293,-577.11948398,0.00046561,120]
[420241922,1775850380363,-2000.0,0.00046561,120]
[420241923,1775850380444,-500.0,0.00046561,120]
[420241924,1775850380515,-500.0,0.00046561,120]
[420241925,1775850380583,-500.0,0.00046561,120]
[420241926,1775850380649,-500.0,0.00046561,120]
[420241927,1775850380717,-500.0,0.00046561,120]
[420241928,1775850380782,-500.0,0.00046561,120]
[420241929,1775850380844,-500.0,0.00046561,120]
[420241930,1775850380909,-500.0,0.00046561,120]
[420241931,1775850380968,-478.35680013,0.00046561,120]
[420241932,1775850381039,-527.48518875,0.00046561,120]
[420241933,1775850381114,-500.0,0.00046561,120]
[420241934,1775850381176,-500.0,0.00046561,120]
[420241935,1775850381250,-500.0,0.00046561,120]
[420241936,1775850381320,-500.0,0.00046561,120]
[420241937,1775850381390,-500.0,0.00046561,120]
[420241938,1775850381469,-500.0,0.00046561,120]
[420241939,1775850381532,-500.0,0.00046561,120]
[420241940,1775850381621,-500.0,0.00046561,120]
[420241941,1775850381706,-500.0,0.00046561,120]
[420241942,1775850381787,-500.0,0.00046561,120]
[420241943,1775850381877,-500.0,0.00046561,120]
[420241944,1775850381968,-500.0,0.00046561,120]
[420241945,1775850382052,-288.46363553,0.00046561,120]
[420241946,1775850382131,-519.33316592,0.00046561,120]
[420241947,1775850382201,-30000.0,0.00046561,120]
[420241948,1775850382265,-298.4153,0.00046561,120]
[420241949,1775850382329,-500.0,0.00046561,120]
[420241950,1775850382393,-500.0,0.00046561,120]
[420241951,1775850382458,-500.0,0.00046561,120]
[420241952,1775850382527,-500.0,0.00046561,120]
[420241953,1775850382593,-500.0,0.00046561,120]
[420241954,1775850382674,-500.0,0.00046561,120]
[420241955,1775850382759,-500.0,0.00046561,120]
[420241956,1775850382843,-316.55248217,0.00046561,120]
[420241957,1775850383374,-248.15075799,0.00046561,120]
[420241958,1775850383565,-601.56067188,0.00046561,120]
[420241959,1775850383665,-748.16351629,0.00046561,30]
[420241960,1775850383747,-608.30347372,0.00046561,30]
[420241961,1775850383809,-500.0,0.00046561,120]
[420241962,1775850383874,-500.0,0.00046561,120]
[420241963,1775850383936,-500.0,0.00046561,120]
[420241964,1775850384000,-500.0,0.00046561,120]
[420241965,1775850384065,-500.0,0.00046561,120]
[420241966,1775850384137,-332.62786184,0.00046561,120]
[420241967,1775850384220,-387.22678913,0.00046561,30]
[420241968,1775850384288,-260.10083198,0.00046561,120]
[420241969,1775850384355,-332.64996932,0.00046561,120]
[420241970,1775850384422,-379.27168224,0.00046561,120]
[420241971,1775850384490,-500.0,0.00046561,120]
[420241972,1775850384558,-500.0,0.00046561,120]
[420241973,1775850384632,-500.0,0.00046561,120]
[420241974,1775850384711,-500.0,0.00046561,120]
[420241975,1775850384814,-500.0,0.00046561,120]
[420241976,1775850384913,-500.0,0.00046561,120]
[420241977,1775850384980,-500.0,0.00046561,120]
[420241978,1775850385047,-500.0,0.00046561,120]
[420241979,1775850385118,-500.0,0.00046561,120]
[420241980,1775850385191,-510.17036974,0.00046561,120]
[420241981,1775850385249,-324.84174132,0.00046561,120]
[420241982,1775850385313,-163.64644501,0.00046561,120]
[420241983,1775850385381,-1000.0,0.00046561,120]
[420241984,1775850385447,-1000.0,0.00046561,120]
[420241985,1775850385511,-1000.0,0.00046561,120]
[420241986,1775850385571,-1000.0,0.00046561,120]
[420241987,1775850385633,-1000.0,0.00046561,120]
[420241988,1775850385698,-1000.0,0.00046561,120]
[420241989,1775850385766,-1000.0,0.00046561,120]
[420241990,1775850385828,-1391.479978,0.00046561,120]
[420241991,1775850385899,-412.228163,0.00046561,120]
[420241992,1775850385958,-616.0,0.00046561,120]
[420241993,1775850386039,-558.95114118,0.00046561,120]
[420241994,1775850386125,-500.0,0.00046561,120]
[420241995,1775850386210,-500.0,0.00046561,120]
[420241996,1775850386310,-500.0,0.00046561,120]
[420241997,1775850386376,-500.0,0.00046561,120]
[420241998,1775850386473,-500.0,0.00046561,120]
[420241999,1775850386558,-500.0,0.00046561,120]
[420242000,1775850386628,-500.0,0.00046561,120]
[420242001,1775850386698,-500.0,0.00046561,120]
[420242002,1775850386759,-500.0,0.00046561,120]
[420242003,1775850386826,-182.97666669,0.00046561,120]
[420242004,1775850386887,-1000.0,0.00046561,120]
[420242005,1775850386954,-1000.0,0.00046561,120]
[420242006,1775850387016,-1000.0,0.00046561,120]
[420242007,1775850387077,-1000.0,0.00046561,120]
[420242008,1775850387137,-1000.0,0.00046561,120]
[420242009,1775850387198,-1000.0,0.00046561,120]
[420242010,1775850387257,-1000.0,0.00046561,120]
[420242011,1775850387323,-1000.0,0.00046561,120]
[420242012,1775850387384,-1000.0,0.00046561,120]
[420242013,1775850387458,-1000.0,0.00046561,120]
[420242014,1775850387521,-1000.0,0.00046561,120]
[420242015,1775850387590,-982.0,0.00046561,120]
[420242016,1775850387651,-300.0,0.00046561,120]
[420242017,1775850387714,-1750.78936618,0.00046561,30]
[420242018,1775850387786,-239779.38574016,0.00046561,120]
[420242019,1775850387851,-999.999999,0.00046561,120]
[420242020,1775850387914,-1524.0,0.00046561,120]
[420242021,1775850387984,-599613.00179923,0.00046561,120]
[420242022,1775850388079,-300000.0,0.00046561,30]
[420242023,1775850388253,-1831.715415,0.00046561,120]
[420242024,1775850388342,-30309.88430749,0.00046561,120]
[420242025,1775850388422,-2191.1195071,0.00046561,120]
[420242026,1775850388486,-234.0,0.00046561,120]
[420242027,1775850388552,-5000.0,0.00046561,30]
[420242028,1775850388610,-5000.0,0.00046561,30]